[Event "FIDE Grand Swiss 2023"]
[Site "Villa Marina, Douglas, Isle of Man, Isle Of Man"]
[Date "2023.11.05"]
[Round "11.55"]
[White "Fawzy, Adham"]
[Black "Maurizzi, Marc`andria"]
[Result "1/2-1/2"]
[TimeControl "40/90 + 30 + 30s/move"]
[WhiteFideId "10613129"]
[BlackFideId "36083534"]
[WhiteElo "2535"]
[BlackElo "2555"]

1. d4 {[%clk 01:40:45]} {[%emt 00:00:15]} d5 {[%clk 01:39:50]} {[%emt
00:01:10]} 2. Nc3 {[%clk 01:41:07]} {[%emt 00:00:08]} Nf6 {[%clk 01:39:43]}
{[%emt 00:00:37]} 3. Bf4 {[%clk 01:41:29]} {[%emt 00:00:07]} a6 {[%clk
01:39:04]} {[%emt 00:01:10]} 4. e3 {[%clk 01:40:49]} {[%emt 00:01:10]} c5
{[%clk 01:38:49]} {[%emt 00:00:45]} 5. dxc5 {[%clk 01:37:32]} {[%emt 00:03:47]}
e6 {[%clk 01:37:10]} {[%emt 00:02:09]} 6. Nf3 {[%clk 01:26:19]} {[%emt
00:11:43]} Bxc5 {[%clk 01:35:04]} {[%emt 00:02:36]} 7. Bd3 {[%clk 01:26:41]}
{[%emt 00:00:07]} O-O {[%clk 01:32:55]} {[%emt 00:02:37]} 8. O-O {[%clk
01:27:01]} {[%emt 00:00:12]} Nbd7 {[%clk 01:30:00]} {[%emt 00:03:23]} 9. e4
{[%clk 01:23:09]} {[%emt 00:04:25]} dxe4 {[%clk 01:29:56]} {[%emt 00:00:34]} 10.
Nxe4 {[%clk 01:23:19]} {[%emt 00:00:20]} Nxe4 {[%clk 01:29:47]} {[%emt
00:00:39]} 11. Bxe4 {[%clk 01:23:45]} {[%emt 00:00:04]} Nf6 {[%clk 01:30:00]}
{[%emt 00:00:17]} 12. Qe2 {[%clk 01:16:03]} {[%emt 00:08:12]} Nxe4 {[%clk
01:25:25]} {[%emt 00:05:05]} 13. Qxe4 {[%clk 01:16:05]} {[%emt 00:00:28]} f6
{[%clk 01:25:33]} {[%emt 00:00:22]} 14. Qc4 {[%clk 01:07:23]} {[%emt 00:09:11]}
Qb6 {[%clk 01:23:13]} {[%emt 00:02:51]} 15. Rad1 {[%clk 00:57:57]} {[%emt
00:09:56]} Kh8 {[%clk 01:12:13]} {[%emt 00:11:30]} 16. Nd2 {[%clk 00:57:53]}
{[%emt 00:00:33]} e5 {[%clk 01:11:50]} {[%emt 00:00:53]} 17. Nb3 {[%clk
00:57:04]} {[%emt 00:01:19]} Be7 {[%clk 00:56:00]} {[%emt 00:16:20]} 18. Be3
{[%clk 00:55:15]} {[%emt 00:02:19]} Be6 {[%clk 00:56:18]} {[%emt 00:00:14]} 19.
Bxb6 {[%clk 00:51:50]} {[%emt 00:03:54]} Bxc4 {[%clk 00:56:43]} {[%emt
00:00:05]} 20. Rfe1 {[%clk 00:52:11]} {[%emt 00:00:08]} Bb5 {[%clk 00:55:53]}
{[%emt 00:01:20]} 21. f4 {[%clk 00:48:18]} {[%emt 00:04:22]} Kg8 {[%clk
00:46:02]} {[%emt 00:10:22]} 22. Nd4 {[%clk 00:28:31]} {[%emt 00:20:18]} exd4
{[%clk 00:41:07]} {[%emt 00:05:25]} 23. Rxe7 {[%clk 00:28:52]} {[%emt
00:00:09]} Rf7 {[%clk 00:40:18]} {[%emt 00:01:18]} 24. Rxf7 {[%clk 00:21:19]}
{[%emt 00:08:04]} Kxf7 {[%clk 00:40:47]} {[%emt 00:00:01]} 25. Rxd4 {[%clk
00:21:14]} {[%emt 00:00:35]} Re8 {[%clk 00:41:12]} {[%emt 00:00:05]} 26. c4
{[%clk 00:18:16]} {[%emt 00:03:27]} Bc6 {[%clk 00:41:37]} {[%emt 00:00:05]} 27.
Kf2 {[%clk 00:18:29]} {[%emt 00:00:17]} Re4 {[%clk 00:42:04]} {[%emt 00:00:03]}
28. g3 {[%clk 00:18:38]} {[%emt 00:00:21]} Ke6 {[%clk 00:42:02]} {[%emt
00:00:32]} 29. Rxe4+ {[%clk 00:18:02]} {[%emt 00:01:07]} Bxe4 {[%clk 00:42:30]}
{[%emt 00:00:02]} 30. Ke3 {[%clk 00:18:30]} {[%emt 00:00:01]} Bc6 {[%clk
00:41:52]} {[%emt 00:01:08]} 31. g4 {[%clk 00:16:48]} {[%emt 00:02:12]} g5
{[%clk 00:39:02]} {[%emt 00:03:21]} 32. b3 {[%clk 00:16:52]} {[%emt 00:00:27]}
Bg2 {[%clk 00:38:49]} {[%emt 00:00:42]} 33. fxg5 {[%clk 00:14:53]} {[%emt
00:02:29]} fxg5 {[%clk 00:39:14]} {[%emt 00:00:02]} 34. Bd8 {[%clk 00:15:07]}
{[%emt 00:00:18]} h6 {[%clk 00:39:07]} {[%emt 00:00:37]} 35. Bb6 {[%clk
00:15:34]} {[%emt 00:00:03]} Bh3 {[%clk 00:38:33]} {[%emt 00:01:03]} 36. Kf3
{[%clk 00:15:37]} {[%emt 00:00:28]} Bf1 {[%clk 00:38:41]} {[%emt 00:00:22]} 37.
Bd4 {[%clk 00:15:07]} {[%emt 00:01:01]} Kf7 {[%clk 00:39:04]} {[%emt 00:00:06]}
38. Ke3 {[%clk 00:10:12]} {[%emt 00:05:25]} Bh3 {[%clk 00:39:14]} {[%emt
00:00:20]} 39. Kf3 {[%clk 00:10:10]} 1/2-1/2

[Event "FIDE Grand Swiss 2023"]
[Site "Villa Marina, Douglas, Isle of Man, Isle Of Man"]
[Date "2023.11.05"]
[Round "11.56"]
[White "Kolbus, Dietmar"]
[Black "Fier, Alexandr"]
[Result "1/2-1/2"]
[TimeControl "40/90 + 30 + 30s/move"]
[WhiteFideId "4610628"]
[BlackFideId "2107139"]
[WhiteElo "2225"]
[BlackElo "2574"]

1. d4 {[%clk 01:40:56]} {[%emt 00:00:03]} Nf6 {[%clk 01:40:53]} {[%emt
00:00:09]} 2. c4 {[%clk 01:41:10]} {[%emt 00:00:15]} g6 {[%clk 01:41:19]}
{[%emt 00:00:05]} 3. Nc3 {[%clk 01:41:08]} {[%emt 00:00:31]} d5 {[%clk
01:41:13]} {[%emt 00:00:37]} 4. Nf3 {[%clk 01:40:41]} {[%emt 00:00:56]} Bg7
{[%clk 01:41:39]} {[%emt 00:00:04]} 5. cxd5 {[%clk 01:23:56]} {[%emt 00:17:16]}
Nxd5 {[%clk 01:41:25]} {[%emt 00:00:43]} 6. e4 {[%clk 01:24:19]} {[%emt
00:00:06]} Nxc3 {[%emt 00:00:10]} 7. bxc3 {[%clk 01:24:42]} {[%emt 00:00:01]}
c5 {[%clk 01:42:19]} {[%emt 00:00:03]} 8. Be3 {[%clk 01:21:49]} {[%emt
00:03:23]} Qa5 {[%clk 01:42:15]} {[%emt 00:00:35]} 9. Qd2 {[%clk 01:20:30]}
{[%emt 00:01:48]} O-O {[%clk 01:42:39]} {[%emt 00:00:06]} 10. Rc1 {[%clk
01:20:22]} {[%emt 00:00:38]} Rd8 {[%clk 01:42:20]} {[%emt 00:00:49]} 11. d5
{[%clk 01:18:41]} {[%emt 00:02:11]} e6 {[%clk 01:42:45]} {[%emt 00:00:05]} 12.
c4 {[%clk 01:18:43]} {[%emt 00:00:28]} Qxd2+ {[%clk 01:43:09]} {[%emt
00:00:06]} 13. Nxd2 {[%clk 01:18:35]} {[%emt 00:00:38]} b6 {[%clk 01:42:13]}
{[%emt 00:01:26]} 14. Be2 {[%clk 01:14:51]} {[%emt 00:04:13]} Na6 {[%clk
01:42:39]} {[%emt 00:00:05]} 15. O-O {[%clk 01:13:09]} {[%emt 00:02:12]} Nb4
{[%clk 01:41:53]} {[%emt 00:01:16]} 16. a3 {[%clk 01:13:26]} {[%emt 00:00:13]}
Na2 {[%clk 01:42:19]} {[%emt 00:00:05]} 17. Rc2 {[%clk 01:13:38]} {[%emt
00:00:18]} Nc3 {[%clk 01:42:45]} {[%emt 00:00:05]} 18. Re1 {[%clk 00:57:50]}
{[%emt 00:16:17]} exd5 {[%clk 01:38:05]} {[%emt 00:05:10]} 19. cxd5 {[%clk
00:58:00]} {[%emt 00:00:19]} Nxe2+ {[%clk 01:38:28]} {[%emt 00:00:07]} 20. Rxe2
{[%clk 00:58:22]} {[%emt 00:00:08]} Ba6 {[%clk 01:38:56]} {[%emt 00:00:03]} 21.
Nc4 {[%clk 00:57:36]} {[%emt 00:01:15]} Rd7 {[%clk 01:35:06]} {[%emt 00:04:21]}
22. Re1 {[%clk 00:42:39]} {[%emt 00:15:25]} Re8 {[%clk 01:34:58]} {[%emt
00:00:39]} 23. f3 {[%clk 00:42:50]} {[%emt 00:00:18]} f5 {[%clk 01:33:50]}
{[%emt 00:01:39]} 24. Bf2 {[%clk 00:43:02]} {[%emt 00:00:17]} Bb5 {[%clk
01:32:58]} {[%emt 00:01:24]} 25. Rcc1 {[%clk 00:38:00]} {[%emt 00:05:31]} Ba4
{[%clk 01:30:07]} {[%emt 00:03:21]} 26. exf5 {[%clk 00:23:51]} {[%emt
00:14:38]} Rxe1+ {[%clk 01:29:59]} {[%emt 00:00:40]} 27. Rxe1 {[%clk 00:24:14]}
{[%emt 00:00:06]} Rxd5 {[%clk 01:28:46]} {[%emt 00:01:43]} 28. fxg6 {[%clk
00:23:45]} {[%emt 00:00:59]} hxg6 {[%clk 01:29:13]} {[%emt 00:00:03]} 29. f4
{[%clk 00:22:36]} {[%emt 00:01:38]} Bc3 {[%clk 01:26:11]} {[%emt 00:03:34]} 30.
Rc1 {[%clk 00:22:34]} {[%emt 00:00:31]} Rd1+ {[%clk 01:26:36]} {[%emt
00:00:06]} 31. Rxd1 {[%clk 00:22:54]} {[%emt 00:00:10]} Bxd1 {[%clk 01:27:02]}
{[%emt 00:00:04]} 32. Be3 {[%clk 00:18:02]} {[%emt 00:05:20]} Bb3 {[%clk
01:23:45]} {[%emt 00:03:48]} 33. Nd6 {[%clk 00:17:40]} {[%emt 00:00:52]} Bb2
{[%emt 00:04:00]} 34. Nc8 {[%clk 00:17:23]} c4 {[%clk 01:20:39]} {[%emt
00:00:53]} 35. Nxa7 {[%clk 00:17:26]} {[%emt 00:00:27]} c3 {[%clk 01:21:05]}
{[%emt 00:00:05]} 36. Bd4 {[%clk 00:17:12]} {[%emt 00:00:44]} Ba1 {[%clk
01:21:29]} {[%emt 00:00:06]} 37. Be3 {[%clk 00:11:11]} {[%emt 00:06:28]} c2
{[%clk 01:19:28]} {[%emt 00:02:33]} 38. Bc1 {[%clk 00:11:02]} {[%emt 00:00:39]}
Ba4 {[%clk 01:19:52]} {[%emt 00:00:06]} 39. Kf2 {[%clk 00:08:53]} {[%emt
00:02:38]} Kf7 {[%clk 01:17:07]} {[%emt 00:03:17]} 40. Ke2 {[%clk 00:04:51]}
{[%emt 00:04:31]} Ke6 {[%clk 01:17:18]} {[%emt 00:00:18]} 41. Kd3 {[%clk
00:03:52]} {[%emt 00:01:29]} Bf6 {[%clk 00:58:37]} {[%emt 00:19:12]} 42. Kc4
{[%clk 00:47:59]} {[%emt 00:06:22]} Kf5 {[%clk 01:46:48]} {[%emt 00:02:20]} 43.
Nb5 {[%clk 00:30:25]} {[%emt 00:18:04]} Bxb5+ {[%clk 01:44:12]} {[%emt
00:03:05]} 44. Kxb5 {[%clk 00:30:48]} {[%emt 00:00:07]} Ke4 {[%clk 01:44:40]}
{[%emt 00:00:02]} 45. Kc4 {[%clk 00:22:07]} {[%emt 00:09:11]} Bd4 {[%clk
01:44:56]} {[%emt 00:00:14]} 46. Kb3 {[%clk 00:21:55]} {[%emt 00:00:42]} Kd3
{[%clk 01:45:21]} {[%emt 00:00:05]} 47. a4 {[%clk 00:17:26]} {[%emt 00:05:00]}
Bc3 {[%clk 01:45:24]} {[%emt 00:00:27]} 48. g4 {[%clk 00:17:33]} {[%emt
00:00:23]} Bf6 {[%clk 01:45:38]} {[%emt 00:00:16]} 49. h3 {[%clk 00:13:03]}
{[%emt 00:04:58]} Bc3 {[%clk 01:45:39]} {[%emt 00:00:29]} 50. h4 {[%clk
00:12:05]} {[%emt 00:01:29]} Bd2 {[%clk 01:45:56]} {[%emt 00:00:14]} 51. Kb2
{[%clk 00:12:29]} {[%emt 00:00:05]} Bc3+ {[%clk 01:46:12]} {[%emt 00:00:15]} 52.
Kb3 {[%clk 00:12:55]} {[%emt 00:00:04]} Bd2 {[%clk 01:46:38]} {[%emt 00:00:04]}
53. Kb2 {[%clk 00:13:22]} {[%emt 00:00:03]} 1/2-1/2